[Event "Early-Titled-Tuesday-Blitz-January-16-2024"]
[Site "Chess.com"]
[Date "2024.01.16"]
[Round "8"]
[White "Seochesspie"]
[Black "vi_pranav"]
[Result "1-0"]
[WhiteElo "2822"]
[BlackElo "3021"]
[TimeControl "180+1"]
[EndTime "9:34:35 PST"]
[Termination "Seochesspie won on time"]

1. c4 {[%clk 0:03:00.9]} 1... e5 {[%clk 0:02:58.7]} 2. Nc3 {[%clk 0:02:59]} 2...
Nc6 {[%clk 0:02:59.3]} 3. Nf3 {[%clk 0:02:58.4]} 3... g6 {[%clk 0:02:59.7]} 4.
g3 {[%clk 0:02:55.2]} 4... Bg7 {[%clk 0:02:59.5]} 5. Bg2 {[%clk 0:02:55.6]} 5...
d6 {[%clk 0:02:59.5]} 6. d3 {[%clk 0:02:55.4]} 6... Nge7 {[%clk 0:03:00]} 7. Rb1
{[%clk 0:02:55.2]} 7... O-O {[%clk 0:03:00.6]} 8. b4 {[%clk 0:02:54.8]} 8... f5
{[%clk 0:02:59.5]} 9. Nd2 {[%clk 0:02:53.5]} 9... Nd4 {[%clk 0:02:59]} 10. b5
{[%clk 0:02:49.5]} 10... c6 {[%clk 0:02:58.6]} 11. bxc6 {[%clk 0:02:48.9]} 11...
bxc6 {[%clk 0:02:59.5]} 12. e3 {[%clk 0:02:47.8]} 12... Ne6 {[%clk 0:02:59.5]}
13. O-O {[%clk 0:02:47.2]} 13... e4 {[%clk 0:02:56.8]} 14. Qc2 {[%clk
0:02:42.5]} 14... exd3 {[%clk 0:02:50.4]} 15. Qxd3 {[%clk 0:02:43.4]} 15... Ba6
{[%clk 0:02:50.7]} 16. Ba3 {[%clk 0:02:39.7]} 16... Rf7 {[%clk 0:02:31.3]} 17.
Rfd1 {[%clk 0:02:38.5]} 17... Rc8 {[%clk 0:02:24.5]} 18. Qc2 {[%clk 0:02:35.1]}
18... Qc7 {[%clk 0:01:59.3]} 19. Ne2 {[%clk 0:02:26.2]} 19... Rd8 {[%clk
0:01:55.9]} 20. Nf3 {[%clk 0:02:21.3]} 20... c5 {[%clk 0:01:42.1]} 21. Bb2
{[%clk 0:02:18.1]} 21... Bb7 {[%clk 0:01:40.6]} 22. Bxg7 {[%clk 0:02:17.7]}
22... Be4 {[%clk 0:01:40.8]} 23. Qc1 {[%clk 0:02:09.9]} 23... Bxb1 {[%clk
0:01:26.7]} 24. Ba1 {[%clk 0:02:09.4]} 24... Be4 {[%clk 0:01:09.8]} 25. Qc3
{[%clk 0:02:08.9]} 25... Kf8 {[%clk 0:01:05]} 26. Nf4 {[%clk 0:02:01.4]} 26...
Nxf4 {[%clk 0:00:59.9]} 27. exf4 {[%clk 0:02:01.1]} 27... Bxf3 {[%clk
0:00:54.5]} 28. Bxf3 {[%clk 0:02:00.2]} 28... Ke8 {[%clk 0:00:54.9]} 29. Re1
{[%clk 0:01:54]} 29... Kd7 {[%clk 0:00:43.6]} 30. h4 {[%clk 0:01:53.9]} 30...
Nc6 {[%clk 0:00:26.2]} 31. Bd5 {[%clk 0:01:53.4]} 31... Re7 {[%clk 0:00:25.8]}
32. Rxe7+ {[%clk 0:01:53.5]} 32... Nxe7 {[%clk 0:00:25.4]} 33. Qg7 {[%clk
0:01:54.4]} 33... Qa5 {[%clk 0:00:20.3]} 34. Bf6 {[%clk 0:01:47.1]} 34... Qe1+
{[%clk 0:00:20]} 35. Kg2 {[%clk 0:01:47.5]} 35... Rb8 {[%clk 0:00:19.8]} 36. Bc3
{[%clk 0:01:40.6]} 36... Qe2 {[%clk 0:00:16.8]} 37. Bf3 {[%clk 0:01:22.3]} 37...
Qxc4 {[%clk 0:00:12.9]} 38. Bf6 {[%clk 0:01:20]} 38... Qe6 {[%clk 0:00:12.9]}
39. Bg5 {[%clk 0:01:20.4]} 39... Rb1 {[%clk 0:00:10.1]} 40. Kh2 {[%clk
0:01:06.8]} 40... Rf1 {[%clk 0:00:04.4]} 41. Kg2 {[%clk 0:01:04.4]} 41... Rc1
{[%clk 0:00:04.9]} 42. Kh2 {[%clk 0:01:04.5]} 42... Qe1 {[%clk 0:00:04.7]} 43.
Bg2 {[%clk 0:01:03.8]} 43... Rc2 {[%clk 0:00:04.3]} 44. Qf8 {[%clk 0:00:46.5]}
44... Rxf2 {[%clk 0:00:03.1]} 45. Qb8 {[%clk 0:00:47.2]} 45... Rxg2+ {[%clk
0:00:02]} 46. Kxg2 {[%clk 0:00:47.2]} 46... Qe4+ {[%clk 0:00:02.7]} 47. Kh2
{[%clk 0:00:47.5]} 47... Nc6 {[%clk 0:00:02.5]} 48. Qb7+ {[%clk 0:00:46.2]}
48... Ke6 {[%clk 0:00:03.1]} 49. Qxh7 {[%clk 0:00:46.8]} 49... Kd5 {[%clk
0:00:02.2]} 50. Qxg6 {[%clk 0:00:45.7]} 50... Nd4 {[%clk 0:00:02.4]} 51. Qg8+
{[%clk 0:00:44.3]} 51... Kc6 {[%clk 0:00:01.8]} 52. Qa8+ {[%clk 0:00:43.2]}
52... Kb5 {[%clk 0:00:02.3]} 53. Qxe4 {[%clk 0:00:40.6]} 53... fxe4 {[%clk
0:00:03.2]} 54. f5 {[%clk 0:00:30]} 54... Nxf5 {[%clk 0:00:01.9]} 55. g4 {[%clk
0:00:30.3]} 55... Nd4 {[%clk 0:00:01.7]} 56. Kg3 {[%clk 0:00:27.9]} 56... Ne6
{[%clk 0:00:01.4]} 57. Bc1 {[%clk 0:00:26.1]} 57... Kc6 {[%clk 0:00:02]} 58. h5
{[%clk 0:00:26.2]} 58... Kd7 {[%clk 0:00:02.5]} 59. g5 {[%clk 0:00:26]} 59...
Ke7 {[%clk 0:00:03]} 60. Kg4 {[%clk 0:00:26.6]} 60... d5 {[%clk 0:00:02.7]} 61.
Kf5 {[%clk 0:00:27]} 61... Nd4+ {[%clk 0:00:03.1]} 62. Ke5 {[%clk 0:00:25]}
62... Nc2 {[%clk 0:00:03.6]} 63. Kxd5 {[%clk 0:00:20]} 63... e3 {[%clk 0:00:04]}
64. Kxc5 {[%clk 0:00:19.7]} 64... e2 {[%clk 0:00:04.4]} 65. Bd2 {[%clk
0:00:20.2]} 65... e1=Q {[%clk 0:00:04.8]} 66. Bxe1 {[%clk 0:00:20.5]} 66... Nxe1
{[%clk 0:00:05.7]} 67. Kc6 {[%clk 0:00:20.7]} 67... Nc2 {[%clk 0:00:06.2]} 68.
a4 {[%clk 0:00:20.3]} 68... Nd4+ {[%clk 0:00:02.7]} 69. Kb7 {[%clk 0:00:20.3]}
69... a5 {[%clk 0:00:02.8]} 70. Kb6 {[%clk 0:00:20.5]} 70... Nb3 {[%clk
0:00:03]} 71. h6 {[%clk 0:00:17.7]} 71... Kf7 {[%clk 0:00:03.2]} 72. h7 {[%clk
0:00:18.2]} 72... Kg7 {[%clk 0:00:03.6]} 73. g6 {[%clk 0:00:18.7]} 73... Kh8
{[%clk 0:00:02.8]} 74. Kb5 {[%clk 0:00:18.7]} 74... Kg7 {[%clk 0:00:03.4]} 75.
Kc4 {[%clk 0:00:18.6]} 75... Nd2+ {[%clk 0:00:03.7]} 76. Kc3 {[%clk 0:00:16.8]}
76... Ne4+ {[%clk 0:00:03.1]} 77. Kd4 {[%clk 0:00:16.3]} 77... Nf6 {[%clk
0:00:01.8]} 78. Kc4 {[%clk 0:00:13.5]} 78... Ne4 {[%clk 0:00:01.4]} 79. Kb5
{[%clk 0:00:13.5]} 1-0

[Event "Early-Titled-Tuesday-Blitz-January-16-2024"]
[Site "Chess.com"]
[Date "2024.01.16"]
[Round "9"]
[White "SarochaChuemsakul"]
[Black "Adar_07"]
[Result "0-1"]
[WhiteElo "2460"]
[BlackElo "2666"]
[TimeControl "180+1"]
[EndTime "9:42:22 PST"]
[Termination "Adar_07 won by resignation"]

1. d4 {[%clk 0:03:00.9]} 1... Nf6 {[%clk 0:02:59.1]} 2. c4 {[%clk 0:03:01.3]}
2... g6 {[%clk 0:02:59.1]} 3. Nc3 {[%clk 0:03:01.5]} 3... Bg7 {[%clk 0:02:59.7]}
4. e4 {[%clk 0:03:02]} 4... d6 {[%clk 0:03:00.4]} 5. Nf3 {[%clk 0:03:02.6]} 5...
O-O {[%clk 0:03:01.1]} 6. Be2 {[%clk 0:03:03.2]} 6... Bg4 {[%clk 0:03:01.2]} 7.
O-O {[%clk 0:03:01.1]} 7... Nbd7 {[%clk 0:03:00.6]} 8. Be3 {[%clk 0:02:59.2]}
8... c5 {[%clk 0:03:00.8]} 9. d5 {[%clk 0:02:58.4]} 9... a6 {[%clk 0:02:59.8]}
10. Nd2 {[%clk 0:02:58.5]} 10... Bxe2 {[%clk 0:02:59.4]} 11. Qxe2 {[%clk
0:02:59.4]} 11... Rc8 {[%clk 0:03:00]} 12. f4 {[%clk 0:02:57]} 12... Re8 {[%clk
0:02:57]} 13. Qd3 {[%clk 0:02:56.7]} 13... Ng4 {[%clk 0:02:48.9]} 14. e5 {[%clk
0:02:49.9]} 14... dxe5 {[%clk 0:02:47.7]} 15. f5 {[%clk 0:02:49.7]} 15... e4
{[%clk 0:02:45.7]} 16. Ncxe4 {[%clk 0:02:48]} 16... Nxe3 {[%clk 0:02:45.8]} 17.
f6 {[%clk 0:02:46.6]} 17... Nxf1 {[%clk 0:02:35.9]} 18. fxg7 {[%clk 0:02:44.3]}
18... Nxd2 {[%clk 0:02:36]} 0-1

[Event "Early-Titled-Tuesday-Blitz-January-16-2024"]
[Site "Chess.com"]
[Date "2024.01.16"]
[Round "9"]
[White "Payyappat"]
[Black "Zakaryan_David"]
[Result "0-1"]
[WhiteElo "2441"]
[BlackElo "2647"]
[TimeControl "180+1"]
[EndTime "9:42:54 PST"]
[Termination "Zakaryan_David won by resignation"]

1. e4 {[%clk 0:03:00.9]} 1... c5 {[%clk 0:02:58.1]} 2. Nf3 {[%clk 0:02:59.8]}
2... e6 {[%clk 0:02:58.4]} 3. d4 {[%clk 0:03:00.5]} 3... cxd4 {[%clk 0:02:59.3]}
4. Nxd4 {[%clk 0:03:01]} 4... Nc6 {[%clk 0:02:59.6]} 5. Nc3 {[%clk 0:03:01.7]}
5... Qc7 {[%clk 0:02:58.8]} 6. Be3 {[%clk 0:03:00.8]} 6... a6 {[%clk 0:02:58.5]}
7. Be2 {[%clk 0:03:00.1]} 7... Nf6 {[%clk 0:02:58.6]} 8. O-O {[%clk 0:02:59.8]}
8... Bb4 {[%clk 0:02:58.7]} 9. f3 {[%clk 0:02:45.4]} 9... O-O {[%clk 0:02:57.4]}
10. Kh1 {[%clk 0:02:42.9]} 10... d5 {[%clk 0:02:54.1]} 11. Nxc6 {[%clk
0:02:41.2]} 11... bxc6 {[%clk 0:02:51.2]} 12. Bd4 {[%clk 0:02:39.3]} 12... e5
{[%clk 0:02:50.7]} 13. Bf2 {[%clk 0:02:27.6]} 13... Bxc3 {[%clk 0:02:46]} 14.
bxc3 {[%clk 0:02:25.8]} 14... Qa5 {[%clk 0:02:46.1]} 15. Bc4 {[%clk 0:02:10]}
15... dxc4 {[%clk 0:02:30.7]} 0-1

[Event "Early-Titled-Tuesday-Blitz-January-16-2024"]
[Site "Chess.com"]
[Date "2024.01.16"]
[Round "9"]
[White "finec2"]
[Black "Yurasova_Daria"]
[Result "0-1"]
[WhiteElo "2306"]
[BlackElo "2445"]
[TimeControl "180+1"]
[EndTime "9:44:01 PST"]
[Termination "Yurasova_Daria won by resignation"]

1. e4 {[%clk 0:03:00.9]} 1... e5 {[%clk 0:02:59.2]} 2. Nf3 {[%clk 0:02:59.9]}
2... Nc6 {[%clk 0:02:58.5]} 3. Bc4 {[%clk 0:02:59.3]} 3... Bc5 {[%clk
0:02:55.7]} 4. c3 {[%clk 0:02:58.8]} 4... Nf6 {[%clk 0:02:55.7]} 5. d3 {[%clk
0:02:58.6]} 5... d6 {[%clk 0:02:55.8]} 6. Bb3 {[%clk 0:02:57.8]} 6... a6 {[%clk
0:02:53]} 7. O-O {[%clk 0:02:57.2]} 7... h6 {[%clk 0:02:52.5]} 8. Nbd2 {[%clk
0:02:56.6]} 8... Ba7 {[%clk 0:02:52.3]} 9. h3 {[%clk 0:02:51.9]} 9... g5 {[%clk
0:02:50.2]} 10. Nh2 {[%clk 0:02:40.1]} 10... g4 {[%clk 0:02:47.5]} 11. hxg4
{[%clk 0:02:33.3]} 11... Rg8 {[%clk 0:02:47.5]} 12. Nc4 {[%clk 0:02:16.1]} 12...
Nxg4 {[%clk 0:02:36.2]} 13. Be3 {[%clk 0:02:03]} 13... Nxh2 {[%clk 0:02:15.7]}
14. Kxh2 {[%clk 0:02:00.9]} 14... Qh4+ {[%clk 0:02:15.7]} 15. Kg1 {[%clk
0:02:00.7]} 15... Qh3 {[%clk 0:01:57.3]} 16. g3 {[%clk 0:01:50.9]} 16... Bg4
{[%clk 0:01:55.6]} 17. f3 {[%clk 0:01:48.5]} 17... Qxg3+ {[%clk 0:01:55]} 18.
Kh1 {[%clk 0:01:48.6]} 18... Qh3+ {[%clk 0:01:55.1]} 0-1

[Event "Early-Titled-Tuesday-Blitz-January-16-2024"]
[Site "Chess.com"]
[Date "2024.01.16"]
[Round "9"]
[White "IM_ArthurDW08"]
[Black "Iskusnyh"]
[Result "0-1"]
[WhiteElo "2771"]
[BlackElo "2656"]
[TimeControl "180+1"]
[EndTime "9:44:10 PST"]
[Termination "Iskusnyh won by resignation"]

1. e4 {[%clk 0:03:00.9]} 1... e6 {[%clk 0:02:59.5]} 2. d4 {[%clk 0:03:01]} 2...
d5 {[%clk 0:03:00]} 3. Nc3 {[%clk 0:03:01.1]} 3... Nf6 {[%clk 0:02:59.5]} 4. Bg5
{[%clk 0:02:59.4]} 4... dxe4 {[%clk 0:02:58.6]} 5. Nxe4 {[%clk 0:02:59.9]} 5...
Nbd7 {[%clk 0:02:57]} 6. Nf3 {[%clk 0:02:54.9]} 6... h6 {[%clk 0:02:56.4]} 7.
Nxf6+ {[%clk 0:02:54.9]} 7... Nxf6 {[%clk 0:02:56.1]} 8. Bd2 {[%clk 0:02:53.5]}
8... c5 {[%clk 0:02:51.6]} 9. dxc5 {[%clk 0:02:54.4]} 9... Bxc5 {[%clk
0:02:49.5]} 10. Bd3 {[%clk 0:02:54.8]} 10... O-O {[%clk 0:02:47.8]} 11. Qe2
{[%clk 0:02:55.1]} 11... e5 {[%clk 0:02:45.5]} 12. O-O-O {[%clk 0:02:46.9]}
12... Re8 {[%clk 0:02:41.4]} 13. Bc3 {[%clk 0:02:42.2]} 13... Qb6 {[%clk
0:02:38.9]} 14. Nxe5 {[%clk 0:02:19.3]} 14... Be6 {[%clk 0:02:38.1]} 15. Bc4
{[%clk 0:02:13.1]} 15... Bxf2 {[%clk 0:02:17.1]} 16. Bxe6 {[%clk 0:02:08.9]}
16... Rxe6 {[%clk 0:02:16.4]} 17. Qc4 {[%clk 0:02:07.3]} 17... Qe3+ {[%clk
0:01:51.8]} 18. Kb1 {[%clk 0:02:02.9]} 18... Rxe5 {[%clk 0:01:51.4]} 19. Bd4
{[%clk 0:01:51.3]} 19... Qe2 {[%clk 0:01:44.3]} 0-1

[Event "Early-Titled-Tuesday-Blitz-January-16-2024"]
[Site "Chess.com"]
[Date "2024.01.16"]
[Round "9"]
[White "Millerkallpa"]
[Black "ChessSwole"]
[Result "0-1"]
[WhiteElo "2172"]
[BlackElo "2682"]
[TimeControl "180+1"]
[EndTime "9:44:35 PST"]
[Termination "ChessSwole won by resignation"]

1. e4 {[%clk 0:03:00.9]} 1... c5 {[%clk 0:02:57.9]} 2. Nf3 {[%clk 0:02:59.5]}
2... d6 {[%clk 0:02:58.3]} 3. d4 {[%clk 0:02:59.6]} 3... cxd4 {[%clk 0:02:59.2]}
4. Nxd4 {[%clk 0:02:59.3]} 4... Nf6 {[%clk 0:02:59.8]} 5. Nc3 {[%clk 0:02:58.6]}
5... Nc6 {[%clk 0:03:00.1]} 6. Bg5 {[%clk 0:02:56.8]} 6... e6 {[%clk 0:02:59.5]}
7. f4 {[%clk 0:02:55.1]} 7... h6 {[%clk 0:02:57.5]} 8. Bxf6 {[%clk 0:02:53.4]}
8... Qxf6 {[%clk 0:02:58.4]} 9. Ndb5 {[%clk 0:01:41.8]} 9... Qd8 {[%clk
0:02:57.8]} 10. Qd2 {[%clk 0:01:36.5]} 10... a6 {[%clk 0:02:57.6]} 11. Nd4
{[%clk 0:01:36.6]} 11... g5 {[%clk 0:02:58]} 12. f5 {[%clk 0:01:19.9]} 12... Bg7
{[%clk 0:02:57.4]} 13. Nxc6 {[%clk 0:01:13]} 13... bxc6 {[%clk 0:02:58.3]} 14.
O-O-O {[%clk 0:01:12.8]} 14... Be5 {[%clk 0:02:54.2]} 15. Kb1 {[%clk 0:01:12.8]}
15... Rb8 {[%clk 0:02:52.1]} 16. Bd3 {[%clk 0:00:34.3]} 16... Qa5 {[%clk
0:02:50]} 17. Ka1 {[%clk 0:00:28.5]} 17... Rxb2 {[%clk 0:02:49.7]} 18. Kxb2
{[%clk 0:00:27.6]} 18... Qb4+ {[%clk 0:02:49.7]} 0-1

[Event "Early-Titled-Tuesday-Blitz-January-16-2024"]
[Site "Chess.com"]
[Date "2024.01.16"]
[Round "9"]
[White "Ezov"]
[Black "GMT4114"]
[Result "1-0"]
[WhiteElo "2228"]
[BlackElo "1993"]
[TimeControl "180+1"]
[EndTime "9:44:40 PST"]
[Termination "Ezov won by resignation"]

1. d4 {[%clk 0:02:58.7]} 1... e6 {[%clk 0:03:00.3]} 2. Nc3 {[%clk 0:02:57.1]}
2... f5 {[%clk 0:02:59.6]} 3. g4 {[%clk 0:02:56.1]} 3... fxg4 {[%clk 0:02:54.5]}
4. h3 {[%clk 0:02:54.9]} 4... g3 {[%clk 0:02:53]} 5. fxg3 {[%clk 0:02:53.6]}
5... Nf6 {[%clk 0:02:53.9]} 6. e4 {[%clk 0:02:52.3]} 6... Bb4 {[%clk 0:02:53.7]}
7. Bd3 {[%clk 0:02:49.9]} 7... b6 {[%clk 0:02:53.8]} 8. e5 {[%clk 0:02:40.7]}
8... Nd5 {[%clk 0:02:41.5]} 9. Qh5+ {[%clk 0:02:14.9]} 9... Kf8 {[%clk
0:02:41.6]} 10. Ne2 {[%clk 0:02:09.8]} 10... Qe7 {[%clk 0:02:16.2]} 11. Bg5
{[%clk 0:01:58.3]} 11... Qe8 {[%clk 0:01:50.9]} 12. O-O+ {[%clk 0:01:46.2]}
12... Nf6 {[%clk 0:01:48.4]} 13. Qh4 {[%clk 0:01:34.9]} 13... Bb7 {[%clk
0:01:33.5]} 14. exf6 {[%clk 0:01:32.5]} 14... gxf6 {[%clk 0:01:34.4]} 15. Rxf6+
{[%clk 0:01:30.8]} 15... Kg8 {[%clk 0:01:32.1]} 1-0

[Event "Early-Titled-Tuesday-Blitz-January-16-2024"]
[Site "Chess.com"]
[Date "2024.01.16"]
[Round "9"]
[White "KSho99"]
[Black "SmirnovTimofey2000"]
[Result "1-0"]
[WhiteElo "2180"]
[BlackElo "1985"]
[TimeControl "180+1"]
[EndTime "9:44:42 PST"]
[Termination "KSho99 won by resignation"]

1. Nf3 {[%clk 0:03:00.9]} 1... d5 {[%clk 0:02:55]} 2. g3 {[%clk 0:03:00.7]} 2...
Bf5 {[%clk 0:02:54.8]} 3. Bg2 {[%clk 0:02:55.3]} 3... e6 {[%clk 0:02:53.7]} 4.
O-O {[%clk 0:02:55.2]} 4... Nf6 {[%clk 0:02:47.4]} 5. c4 {[%clk 0:02:55]} 5...
c6 {[%clk 0:02:46]} 6. Qb3 {[%clk 0:02:54]} 6... Qb6 {[%clk 0:02:42]} 7. d3
{[%clk 0:02:53.7]} 7... Be7 {[%clk 0:02:34.2]} 8. Be3 {[%clk 0:02:53]} 8... c5
{[%clk 0:02:23.3]} 9. Nh4 {[%clk 0:02:03.8]} 9... Bg6 {[%clk 0:02:21.5]} 10.
cxd5 {[%clk 0:01:52.7]} 10... exd5 {[%clk 0:02:20.2]} 11. Qxb6 {[%clk
0:01:27.2]} 11... axb6 {[%clk 0:02:20.1]} 12. Nc3 {[%clk 0:01:27.4]} 12... d4
{[%clk 0:02:16.2]} 13. Nb5 {[%clk 0:01:25.5]} 13... Na6 {[%clk 0:01:32.5]} 14.
Bxb7 {[%clk 0:01:23.6]} 14... Ra7 {[%clk 0:01:32]} 15. Nxa7 {[%clk 0:01:20.3]}
1-0

[Event "Early-Titled-Tuesday-Blitz-January-16-2024"]
[Site "Chess.com"]
[Date "2024.01.16"]
[Round "9"]
[White "MikaelyanArman"]
[Black "GHANDEEVAM2003"]
[Result "1-0"]
[WhiteElo "2860"]
[BlackElo "2994"]
[TimeControl "180+1"]
[EndTime "9:44:59 PST"]
[Termination "MikaelyanArman won by resignation"]

1. d4 {[%clk 0:03:00.9]} 1... g6 {[%clk 0:03:00.9]} 2. e4 {[%clk 0:03:00.6]}
2... Bg7 {[%clk 0:03:01.7]} 3. Nf3 {[%clk 0:03:00.9]} 3... c6 {[%clk 0:03:01.5]}
4. h3 {[%clk 0:02:58.1]} 4... d5 {[%clk 0:03:02]} 5. Nc3 {[%clk 0:02:58.3]} 5...
Nf6 {[%clk 0:03:01.1]} 6. Bd3 {[%clk 0:02:54.5]} 6... dxe4 {[%clk 0:03:00.8]} 7.
Nxe4 {[%clk 0:02:55.4]} 7... Bf5 {[%clk 0:03:01.3]} 8. Nxf6+ {[%clk 0:02:42.9]}
8... Bxf6 {[%clk 0:03:02.2]} 9. O-O {[%clk 0:02:43.1]} 9... Bxd3 {[%clk
0:02:59.5]} 10. Qxd3 {[%clk 0:02:44]} 10... O-O {[%clk 0:02:59.9]} 11. Bh6
{[%clk 0:02:40.1]} 11... Re8 {[%clk 0:02:59.3]} 12. Rfe1 {[%clk 0:02:39.9]}
12... c5 {[%clk 0:02:56.9]} 13. dxc5 {[%clk 0:02:35.3]} 13... Na6 {[%clk
0:02:51.9]} 14. Qb5 {[%clk 0:02:14.2]} 14... Qc7 {[%clk 0:02:49.9]} 15. b4
{[%clk 0:01:47.3]} 15... Bxa1 {[%clk 0:02:48.9]} 16. Rxa1 {[%clk 0:01:48.2]}
16... Qc6 {[%clk 0:02:49.1]} 17. Qc4 {[%clk 0:01:41.2]} 17... Nc7 {[%clk
0:02:46]} 18. Re1 {[%clk 0:01:32.2]} 18... Qd5 {[%clk 0:02:44.8]} 19. Qc3 {[%clk
0:01:17.4]} 19... f6 {[%clk 0:02:44.5]} 20. a4 {[%clk 0:01:09.2]} 20... e5
{[%clk 0:02:39.6]} 21. Be3 {[%clk 0:01:05.2]} 21... Ne6 {[%clk 0:02:36.9]} 22.
Nd2 {[%clk 0:01:04]} 22... Rac8 {[%clk 0:02:26.3]} 23. Qc4 {[%clk 0:00:51.4]}
23... Red8 {[%clk 0:02:17.2]} 24. Qxd5 {[%clk 0:00:50.7]} 24... Rxd5 {[%clk
0:02:18.1]} 25. Ne4 {[%clk 0:00:51.3]} 25... f5 {[%clk 0:02:17.8]} 26. Nf6+
{[%clk 0:00:47.5]} 1-0

[Event "Early-Titled-Tuesday-Blitz-January-16-2024"]
[Site "Chess.com"]
[Date "2024.01.16"]
[Round "9"]
[White "Darkbluelord"]
[Black "stratacticos"]
[Result "1-0"]
[WhiteElo "2168"]
[BlackElo "1969"]
[TimeControl "180+1"]
[EndTime "9:45:03 PST"]
[Termination "Darkbluelord won by resignation"]

1. e4 {[%clk 0:03:00.9]} 1... c5 {[%clk 0:02:58.8]} 2. Nc3 {[%clk 0:03:00.3]}
2... Nc6 {[%clk 0:02:57.7]} 3. f4 {[%clk 0:03:00.6]} 3... e6 {[%clk 0:02:54]} 4.
Nf3 {[%clk 0:03:00.8]} 4... a6 {[%clk 0:02:52.5]} 5. a4 {[%clk 0:03:00]} 5... d6
{[%clk 0:02:51]} 6. g3 {[%clk 0:03:00.2]} 6... Be7 {[%clk 0:02:50.7]} 7. Bg2
{[%clk 0:02:59.9]} 7... Nf6 {[%clk 0:02:50.3]} 8. O-O {[%clk 0:03:00]} 8... O-O
{[%clk 0:02:50]} 9. d3 {[%clk 0:03:00.6]} 9... Bd7 {[%clk 0:02:49.4]} 10. Ne2
{[%clk 0:03:00.3]} 10... b5 {[%clk 0:02:37.4]} 11. h3 {[%clk 0:02:59.7]} 11...
b4 {[%clk 0:02:09.7]} 12. g4 {[%clk 0:02:59.2]} 12... Ne8 {[%clk 0:02:08.6]} 13.
Ng3 {[%clk 0:02:57.7]} 13... a5 {[%clk 0:02:07.7]} 14. g5 {[%clk 0:02:46.5]}
14... f6 {[%clk 0:02:06.5]} 15. h4 {[%clk 0:02:38.7]} 15... e5 {[%clk
0:02:06.2]} 16. f5 {[%clk 0:02:32]} 16... Nd4 {[%clk 0:02:05.6]} 17. Nxd4 {[%clk
0:02:21.7]} 17... cxd4 {[%clk 0:02:05.1]} 18. g6 {[%clk 0:02:22.2]} 18... h6
{[%clk 0:01:58.7]} 19. Qh5 {[%clk 0:02:18.6]} 19... d5 {[%clk 0:01:36]} 20. Bxh6
{[%clk 0:02:10.2]} 20... gxh6 {[%clk 0:01:35.5]} 21. Qxh6 {[%clk 0:02:10.2]}
21... Rf7 {[%clk 0:01:36.4]} 22. gxf7+ {[%clk 0:02:05.2]} 22... Kxf7 {[%clk
0:01:36.3]} 23. Qg6+ {[%clk 0:01:55.8]} 23... Kf8 {[%clk 0:01:35.8]} 24. h5
{[%clk 0:01:41.9]} 24... Nd6 {[%clk 0:01:32]} 25. h6 {[%clk 0:01:39.7]} 25...
Bc6 {[%clk 0:01:23.3]} 26. h7 {[%clk 0:01:33.8]} 1-0

[Event "Early-Titled-Tuesday-Blitz-January-16-2024"]
[Site "Chess.com"]
[Date "2024.01.16"]
[Round "9"]
[White "Nikita_Klepikov"]
[Black "Sanyura"]
[Result "0-1"]
[WhiteElo "2384"]
[BlackElo "2625"]
[TimeControl "180+1"]
[EndTime "9:45:16 PST"]
[Termination "Sanyura won by resignation"]

1. e4 {[%clk 0:03:00.9]} 1... c6 {[%clk 0:02:33.5]} 2. d4 {[%clk 0:03:00.6]}
2... d5 {[%clk 0:02:33]} 3. Nd2 {[%clk 0:03:01.2]} 3... dxe4 {[%clk 0:02:32.7]}
4. Nxe4 {[%clk 0:03:02.1]} 4... Nf6 {[%clk 0:02:33.2]} 5. Nxf6+ {[%clk
0:03:02.4]} 5... exf6 {[%clk 0:02:34.1]} 6. c3 {[%clk 0:03:03.1]} 6... Bd6
{[%clk 0:02:34.7]} 7. Bd3 {[%clk 0:03:03.4]} 7... O-O {[%clk 0:02:35.4]} 8. Qc2
{[%clk 0:03:04.2]} 8... Re8+ {[%clk 0:02:35.9]} 9. Ne2 {[%clk 0:03:04.7]} 9...
h5 {[%clk 0:02:36.8]} 10. O-O {[%clk 0:03:05.4]} 10... h4 {[%clk 0:02:37.2]} 11.
Re1 {[%clk 0:03:05.7]} 11... Nd7 {[%clk 0:02:37.8]} 12. Bf4 {[%clk 0:02:39.6]}
12... Nf8 {[%clk 0:02:33.9]} 13. Rad1 {[%clk 0:02:23.7]} 13... Rxe2 {[%clk
0:02:20.5]} 14. Qxe2 {[%clk 0:02:20.5]} 14... Bxf4 {[%clk 0:02:20.5]} 15. Qe4
{[%clk 0:02:19.1]} 15... Qc7 {[%clk 0:02:05.7]} 16. g3 {[%clk 0:02:17.3]} 16...
hxg3 {[%clk 0:02:03.7]} 17. hxg3 {[%clk 0:02:18.2]} 17... Bd6 {[%clk 0:01:56.8]}
18. Kg2 {[%clk 0:02:18.5]} 18... Be6 {[%clk 0:01:55.5]} 19. c4 {[%clk
0:02:18.2]} 19... Ng6 {[%clk 0:01:47.4]} 20. Rh1 {[%clk 0:02:09.1]} 20... Re8
{[%clk 0:01:24]} 21. Rde1 {[%clk 0:02:01.8]} 21... Bh3+ {[%clk 0:00:59]} 22.
Rxh3 {[%clk 0:01:58.1]} 22... Rxe4 {[%clk 0:00:59.9]} 23. Bxe4 {[%clk
0:01:54.9]} 23... Qd7 {[%clk 0:00:59.2]} 24. Rh5 {[%clk 0:01:49.3]} 24... Nf4+
{[%clk 0:00:55.6]} 0-1

[Event "Early-Titled-Tuesday-Blitz-January-16-2024"]
[Site "Chess.com"]
[Date "2024.01.16"]
[Round "9"]
[White "Maestro-Fermin"]
[Black "Nikolakis2014"]
[Result "0-1"]
[WhiteElo "2618"]
[BlackElo "2744"]
[TimeControl "180+1"]
[EndTime "9:45:18 PST"]
[Termination "Nikolakis2014 won by resignation"]

1. d4 {[%clk 0:03:00.9]} 1... Nf6 {[%clk 0:02:59.3]} 2. Bg5 {[%clk 0:02:59.5]}
2... d5 {[%clk 0:02:58.6]} 3. e3 {[%clk 0:02:57.5]} 3... c5 {[%clk 0:02:57.7]}
4. Bxf6 {[%clk 0:02:55.8]} 4... gxf6 {[%clk 0:02:57.4]} 5. Nc3 {[%clk
0:02:48.1]} 5... Nc6 {[%clk 0:02:52.9]} 6. Qh5 {[%clk 0:02:47.2]} 6... cxd4
{[%clk 0:02:43.8]} 7. exd4 {[%clk 0:02:46.4]} 7... e6 {[%clk 0:02:44]} 8. O-O-O
{[%clk 0:02:44.6]} 8... f5 {[%clk 0:02:30.5]} 9. Nge2 {[%clk 0:02:43]} 9... Qf6
{[%clk 0:02:30.4]} 10. Kb1 {[%clk 0:02:39.1]} 10... Bd7 {[%clk 0:02:29.7]} 11.
h4 {[%clk 0:02:38.5]} 11... O-O-O {[%clk 0:02:28.4]} 12. Rh3 {[%clk 0:02:31.6]}
12... Rg8 {[%clk 0:02:27.2]} 13. Na4 {[%clk 0:02:18.1]} 13... Kb8 {[%clk
0:02:24.8]} 14. Rc3 {[%clk 0:02:06.5]} 14... Rg4 {[%clk 0:02:11.8]} 15. g3
{[%clk 0:01:54.7]} 15... Nxd4 {[%clk 0:02:04.8]} 16. Rxd4 {[%clk 0:01:43.2]}
16... Rxd4 {[%clk 0:02:03.1]} 17. Nxd4 {[%clk 0:01:02.5]} 17... Qxd4 {[%clk
0:02:02.7]} 18. Rd3 {[%clk 0:00:32.7]} 18... Qxf2 {[%clk 0:01:54]} 0-1